[Event "Titled Tuesday Blitz May 25 2021"]
[White "Shtyka, Sergey"]
[Black "Rahman, Ziaur"]
[WhiteFideId "4138465"]
[BlackFideId "10200037"]
[WhiteElo "2102"]
[BlackElo "2460"]
[Result "0-1"]
[Round "06"]
[TimeControl "180+1"]
[Date "2021.05.25"]
[WhiteClock "0:01:38"]
[BlackClock "0:00:54"]

1. e4 {[%clk 0:02:59]}  c5 {[%clk 0:02:55]} 2. Nf3 {[%clk 0:02:59]}  d6 {[%clk 0:02:54]} 3. d4 {[%clk 0:03:00]}  cxd4 {[%clk 0:02:54]} 4. Nxd4 {[%clk 0:03:01]}  Nf6 {[%clk 0:02:55]} 5. Nc3 {[%clk 0:03:01]}  Nc6 {[%clk 0:02:55]} 6. Bc4 {[%clk 0:03:01]}  Qb6 {[%clk 0:02:54]} 7. Nb3 {[%clk 0:03:01]}  e6 {[%clk 0:02:54]} 8. Be3 {[%clk 0:03:01]}  Qc7 {[%clk 0:02:53]} 9. O-O {[%clk 0:03:02]}  Be7 {[%clk 0:02:51]} 10. Bd3 {[%clk 0:03:02]}  O-O {[%clk 0:02:45]} 11. f4 {[%clk 0:03:02]}  a6 {[%clk 0:02:46]} 12. Qf3 {[%clk 0:03:02]}  b5 {[%clk 0:02:45]} 13. a3 {[%clk 0:03:02]}  Bb7 {[%clk 0:02:44]} 14. Rae1 {[%clk 0:03:02]}  b4 {[%clk 0:02:43]} 15. Nb1 {[%clk 0:03:01]}  d5 {[%clk 0:02:32]} 16. e5 {[%clk 0:02:59]}  Ne4 {[%clk 0:02:32]} 17. a4 {[%clk 0:02:57]}  f6 {[%clk 0:02:14]} 18. exf6 {[%clk 0:02:54]}  Bxf6 {[%clk 0:02:06]} 19. Nc5 {[%clk 0:02:34]}  Nxc5 {[%clk 0:02:01]} 20. Bxc5 {[%clk 0:02:35]}  Nd4 {[%clk 0:01:32]} 21. Bxd4 {[%clk 0:02:21]}  Bxd4+ {[%clk 0:01:32]} 22. Kh1 {[%clk 0:02:22]}  e5 {[%clk 0:01:32]} 23. Qh3 {[%clk 0:02:16]}  e4 {[%clk 0:01:32]} 24. Be2 {[%clk 0:02:02]}  Bxb2 {[%clk 0:01:30]} 25. f5 {[%clk 0:01:57]}  Qxc2 {[%clk 0:01:22]} 26. f6 {[%clk 0:01:51]}  Rxf6 {[%clk 0:01:16]} 27. Rxf6 {[%clk 0:01:50]}  Bxf6 {[%clk 0:01:17]} 28. Bg4 {[%clk 0:01:50]}  Qf2 {[%clk 0:00:59]} 29. Rg1 {[%clk 0:01:38]}  Bd4 {[%clk 0:00:56]} 30. Rc1 {[%clk 0:01:38]}  Rf8 {[%clk 0:00:54]} 0-1


[Site "https://www.chess.com"]

[Event "Titled Tuesday Blitz May 25 2021"]
[White "Sjugirov, Sanan"]
[Black "Ghimpu, Samuel-Timotei"]
[WhiteFideId "4189302"]
[BlackFideId "1238175"]
[WhiteElo "2472"]
[BlackElo "2026"]
[Result "1-0"]
[Round "06"]
[TimeControl "180+1"]
[Date "2021.05.25"]
[WhiteClock "0:00:53"]
[BlackClock "0:00:02"]

1. e4 {[%clk 0:03:00]}  e6 {[%clk 0:02:59]} 2. d4 {[%clk 0:03:00]}  d5 {[%clk 0:02:59]} 3. e5 {[%clk 0:03:00]}  c5 {[%clk 0:02:59]} 4. c3 {[%clk 0:03:00]}  Nc6 {[%clk 0:02:59]} 5. Nf3 {[%clk 0:03:00]}  Qb6 {[%clk 0:02:57]} 6. a3 {[%clk 0:02:59]}  c4 {[%clk 0:02:57]} 7. Nbd2 {[%clk 0:02:59]}  Na5 {[%clk 0:02:57]} 8. g3 {[%clk 0:02:57]}  Bd7 {[%clk 0:02:57]} 9. h4 {[%clk 0:02:57]}  O-O-O {[%clk 0:02:55]} 10. Ng5 {[%clk 0:02:52]}  Be8 {[%clk 0:02:51]} 11. Bh3 {[%clk 0:02:51]}  Kb8 {[%clk 0:02:47]} 12. O-O {[%clk 0:02:50]}  h6 {[%clk 0:02:36]} 13. Ngf3 {[%clk 0:02:50]}  f5 {[%clk 0:02:12]} 14. exf6 {[%clk 0:02:48]}  gxf6 {[%clk 0:02:04]} 15. Re1 {[%clk 0:02:47]}  Bf7 {[%clk 0:02:02]} 16. Rb1 {[%clk 0:02:44]}  h5 {[%clk 0:01:54]} 17. b3 {[%clk 0:02:42]}  cxb3 {[%clk 0:01:44]} 18. Nxb3 {[%clk 0:02:39]}  Nxb3 {[%clk 0:01:33]} 19. Rxb3 {[%clk 0:02:40]}  Qc6 {[%clk 0:01:33]} 20. Bf4+ {[%clk 0:02:33]}  Ka8 {[%clk 0:01:30]} 21. Qe2 {[%clk 0:02:30]}  Bh6 {[%clk 0:01:15]} 22. Bxh6 {[%clk 0:02:16]}  Nxh6 {[%clk 0:01:14]} 23. Reb1 {[%clk 0:02:14]}  b6 {[%clk 0:01:07]} 24. a4 {[%clk 0:02:14]}  Rb8 {[%clk 0:00:59]} 25. Qb2 {[%clk 0:02:04]}  Rhc8 {[%clk 0:00:41]} 26. Bf1 {[%clk 0:01:51]}  Qd6 {[%clk 0:00:28]} 27. Bg2 {[%clk 0:01:31]}  Nf5 {[%clk 0:00:25]} 28. Nd2 {[%clk 0:01:22]}  Rg8 {[%clk 0:00:22]} 29. c4 {[%clk 0:01:19]}  Ne7 {[%clk 0:00:08]} 30. a5 {[%clk 0:01:14]}  bxa5 {[%clk 0:00:06]} 31. Qa2 {[%clk 0:01:10]}  Rxb3 {[%clk 0:00:06]} 32. Rxb3 {[%clk 0:01:11]}  Nc6 {[%clk 0:00:04]} 33. Qa4 {[%clk 0:01:04]}  Nxd4 {[%clk 0:00:03]} 34. cxd5 {[%clk 0:00:53]}  exd5 {[%clk 0:00:02]} 35. Qxd4 {[%clk 0:00:53]} 1-0


[Site "https://www.chess.com"]

[Event "Titled Tuesday Blitz May 25 2021"]
[White "Skatchkov, Pavel"]
[Black "Gracia Alvarez, Gerardo Antonio"]
[WhiteFideId "4121848"]
[BlackFideId "5109124"]
[WhiteElo "2476"]
[BlackElo "2148"]
[Result "1-0"]
[Round "06"]
[TimeControl "180+1"]
[Date "2021.05.25"]
[WhiteClock "0:01:53"]
[BlackClock "0:01:19"]

1. d4 {[%clk 0:03:00]}  Nf6 {[%clk 0:02:59]} 2. c4 {[%clk 0:03:01]}  c5 {[%clk 0:02:59]} 3. d5 {[%clk 0:03:01]}  b5 {[%clk 0:02:58]} 4. Nf3 {[%clk 0:03:01]}  Bb7 {[%clk 0:02:44]} 5. Qc2 {[%clk 0:03:00]}  b4 {[%clk 0:02:34]} 6. e4 {[%clk 0:02:58]}  d6 {[%clk 0:02:34]} 7. e5 {[%clk 0:02:56]}  dxe5 {[%clk 0:02:32]} 8. Nxe5 {[%clk 0:02:57]}  Nbd7 {[%clk 0:02:30]} 9. Bf4 {[%clk 0:02:57]}  Nxe5 {[%clk 0:02:27]} 10. Bxe5 {[%clk 0:02:58]}  Nd7 {[%clk 0:02:27]} 11. Bg3 {[%clk 0:02:54]}  g6 {[%clk 0:02:26]} 12. Be2 {[%clk 0:02:52]}  Bg7 {[%clk 0:02:26]} 13. O-O {[%clk 0:02:53]}  O-O {[%clk 0:02:25]} 14. Nd2 {[%clk 0:02:54]}  Nb6 {[%clk 0:02:12]} 15. a4 {[%clk 0:02:48]}  Ba6 {[%clk 0:01:47]} 16. Rae1 {[%clk 0:02:44]}  Qd7 {[%clk 0:01:42]} 17. b3 {[%clk 0:02:42]}  Nc8 {[%clk 0:01:40]} 18. Ne4 {[%clk 0:02:38]}  Bd4 {[%clk 0:01:36]} 19. Rd1 {[%clk 0:02:29]}  Nd6 {[%clk 0:01:36]} 20. Bxd6 {[%clk 0:02:27]}  exd6 {[%clk 0:01:32]} 21. Rxd4 {[%clk 0:02:27]}  f5 {[%clk 0:01:32]} 22. Nxc5 {[%clk 0:02:21]}  dxc5 {[%clk 0:01:32]} 23. Rd2 {[%clk 0:02:19]}  Qd6 {[%clk 0:01:31]} 24. Bf3 {[%clk 0:02:20]}  Rae8 {[%clk 0:01:31]} 25. Re2 {[%clk 0:02:19]}  Bc8 {[%clk 0:01:30]} 26. Rfe1 {[%clk 0:02:19]}  Bd7 {[%clk 0:01:29]} 27. g3 {[%clk 0:02:12]}  f4 {[%clk 0:01:25]} 28. Rxe8 {[%clk 0:02:07]}  Rxe8 {[%clk 0:01:24]} 29. Rxe8+ {[%clk 0:02:07]}  Bxe8 {[%clk 0:01:25]} 30. Qe4 {[%clk 0:02:07]}  Bd7 {[%clk 0:01:19]} 31. gxf4 {[%clk 0:01:54]}  Kf7 {[%clk 0:01:19]} 32. Qe5 {[%clk 0:01:53]} 1-0


[Site "https://www.chess.com"]

[Event "Titled Tuesday Blitz May 25 2021"]
[White "Starozhilov, Leonid"]
[Black "Goltsev, Dmitry"]
[WhiteFideId "14106752"]
[BlackFideId "24176710"]
[WhiteElo "2411"]
[BlackElo "2366"]
[Result "0-1"]
[Round "06"]
[TimeControl "180+1"]
[Date "2021.05.25"]
[WhiteClock "0:00:19"]
[BlackClock "0:01:28"]

1. e4 {[%clk 0:03:00]}  c5 {[%clk 0:02:55]} 2. Nf3 {[%clk 0:03:00]}  e6 {[%clk 0:02:56]} 3. c4 {[%clk 0:03:00]}  Nc6 {[%clk 0:02:55]} 4. Nc3 {[%clk 0:03:01]}  Nd4 {[%clk 0:02:55]} 5. Nxd4 {[%clk 0:02:56]}  cxd4 {[%clk 0:02:56]} 6. Ne2 {[%clk 0:02:56]}  e5 {[%clk 0:02:56]} 7. d3 {[%clk 0:02:49]}  Nf6 {[%clk 0:02:56]} 8. g3 {[%clk 0:02:44]}  Bb4+ {[%clk 0:02:55]} 9. Bd2 {[%clk 0:02:44]}  Qa5 {[%clk 0:02:52]} 10. a3 {[%clk 0:02:42]}  Bxd2+ {[%clk 0:02:51]} 11. Qxd2 {[%clk 0:02:43]}  Qxd2+ {[%clk 0:02:52]} 12. Kxd2 {[%clk 0:02:44]}  d6 {[%clk 0:02:53]} 13. h3 {[%clk 0:02:43]}  a5 {[%clk 0:02:49]} 14. b4 {[%clk 0:02:41]}  axb4 {[%clk 0:02:49]} 15. Bg2 {[%clk 0:02:33]}  bxa3 {[%clk 0:02:47]} 16. Rhb1 {[%clk 0:02:32]}  Kd7 {[%clk 0:02:44]} 17. Rb3 {[%clk 0:02:31]}  a2 {[%clk 0:02:42]} 18. Nc1 {[%clk 0:02:29]}  Kc7 {[%clk 0:02:41]} 19. Rxa2 {[%clk 0:02:29]}  Rxa2+ {[%clk 0:02:41]} 20. Nxa2 {[%clk 0:02:30]}  Bd7 {[%clk 0:02:41]} 21. Ra3 {[%clk 0:02:28]}  Rb8 {[%clk 0:02:39]} 22. Nb4 {[%clk 0:02:22]}  Bc6 {[%clk 0:02:36]} 23. f4 {[%clk 0:02:19]}  Nd7 {[%clk 0:02:35]} 24. Ra5 {[%clk 0:02:04]}  f6 {[%clk 0:02:32]} 25. h4 {[%clk 0:02:04]}  Nc5 {[%clk 0:02:31]} 26. Kc2 {[%clk 0:01:54]}  Rg8 {[%clk 0:02:17]} 27. fxe5 {[%clk 0:01:45]}  fxe5 {[%clk 0:02:18]} 28. Ra1 {[%clk 0:01:39]}  g5 {[%clk 0:02:10]} 29. h5 {[%clk 0:01:28]}  Rf8 {[%clk 0:02:09]} 30. Rf1 {[%clk 0:01:27]}  Rxf1 {[%clk 0:02:06]} 31. Bxf1 {[%clk 0:01:28]}  h6 {[%clk 0:02:04]} 32. Bh3 {[%clk 0:01:26]}  Kd8 {[%clk 0:01:52]} 33. Bf5 {[%clk 0:01:24]}  Ke7 {[%clk 0:01:51]} 34. Kd2 {[%clk 0:01:13]}  Kf6 {[%clk 0:01:48]} 35. g4 {[%clk 0:01:02]}  Ke7 {[%clk 0:01:48]} 36. Kc2 {[%clk 0:01:01]}  Kd8 {[%clk 0:01:47]} 37. Kd2 {[%clk 0:01:00]}  Kc7 {[%clk 0:01:48]} 38. Kc2 {[%clk 0:01:00]}  Kb6 {[%clk 0:01:48]} 39. Kb2 {[%clk 0:00:44]}  Ka5 {[%clk 0:01:48]} 40. Ka3 {[%clk 0:00:44]}  Ba4 {[%clk 0:01:48]} 41. Bc8 {[%clk 0:00:41]}  Bd1 {[%clk 0:01:45]} 42. Bf5 {[%clk 0:00:38]}  Be2 {[%clk 0:01:44]} 43. Nd5 {[%clk 0:00:36]}  Bxd3 {[%clk 0:01:42]} 44. Nf6 {[%clk 0:00:36]}  Bxc4 {[%clk 0:01:42]} 45. Kb2 {[%clk 0:00:28]}  Kb4 {[%clk 0:01:41]} 46. Bh7 {[%clk 0:00:25]}  d3 {[%clk 0:01:40]} 47. Bg8 {[%clk 0:00:25]}  Bxg8 {[%clk 0:01:31]} 48. Nxg8 {[%clk 0:00:25]}  Nxe4 {[%clk 0:01:31]} 49. Nxh6 {[%clk 0:00:24]}  Nf2 {[%clk 0:01:32]} 50. Nf5 {[%clk 0:00:24]}  d2 {[%clk 0:01:30]} 51. Ne3 {[%clk 0:00:22]}  Nxg4 {[%clk 0:01:31]} 52. Nd5+ {[%clk 0:00:18]}  Kc4 {[%clk 0:01:28]} 53. Nb6+ {[%clk 0:00:19]}  Kd3 {[%clk 0:01:28]} 0-1


[Site "https://www.chess.com"]

[Event "Titled Tuesday Blitz May 25 2021"]
[White "Sumaneev, Dmitry"]
[Black "Timmermans, Mark"]
[WhiteFideId "4125312"]
[BlackFideId "1026399"]
[WhiteElo "2524"]
[BlackElo "2460"]
[Result "0-1"]
[Round "06"]
[TimeControl "180+1"]
[Date "2021.05.25"]
[WhiteClock "0:00:01"]
[BlackClock "0:00:21"]

1. e4 {[%clk 0:03:00]}  e5 {[%clk 0:02:59]} 2. Nc3 {[%clk 0:03:00]}  Nf6 {[%clk 0:02:59]} 3. g3 {[%clk 0:03:00]}  d5 {[%clk 0:02:59]} 4. exd5 {[%clk 0:03:01]}  Nxd5 {[%clk 0:02:58]} 5. Bg2 {[%clk 0:03:02]}  Nxc3 {[%clk 0:02:59]} 6. bxc3 {[%clk 0:03:03]}  Bd6 {[%clk 0:02:59]} 7. Rb1 {[%clk 0:03:02]}  Nc6 {[%clk 0:02:55]} 8. Qh5 {[%clk 0:03:01]}  O-O {[%clk 0:02:41]} 9. Nh3 {[%clk 0:03:01]}  h6 {[%clk 0:02:35]} 10. O-O {[%clk 0:02:57]}  Qe8 {[%clk 0:02:26]} 11. d3 {[%clk 0:02:53]}  f5 {[%clk 0:02:27]} 12. Qxe8 {[%clk 0:02:46]}  Rxe8 {[%clk 0:02:28]} 13. Bd5+ {[%clk 0:02:44]}  Kh7 {[%clk 0:02:20]} 14. f4 {[%clk 0:02:44]}  Ne7 {[%clk 0:02:07]} 15. Bg2 {[%clk 0:02:34]}  Rb8 {[%clk 0:02:02]} 16. fxe5 {[%clk 0:02:30]}  Bxe5 {[%clk 0:02:03]} 17. d4 {[%clk 0:02:28]}  Bd6 {[%clk 0:02:01]} 18. c4 {[%clk 0:02:12]}  c6 {[%clk 0:02:02]} 19. c5 {[%clk 0:01:55]}  Bc7 {[%clk 0:01:58]} 20. Bf4 {[%clk 0:01:23]}  Bxf4 {[%clk 0:01:58]} 21. Nxf4 {[%clk 0:01:23]}  g5 {[%clk 0:01:55]} 22. Nd3 {[%clk 0:01:23]}  Be6 {[%clk 0:01:51]} 23. Rfe1 {[%clk 0:01:22]}  Bxa2 {[%clk 0:01:45]} 24. Ra1 {[%clk 0:01:20]}  Bc4 {[%clk 0:01:45]} 25. Rxa7 {[%clk 0:01:19]}  Bxd3 {[%clk 0:01:38]} 26. cxd3 {[%clk 0:01:19]}  Kg6 {[%clk 0:01:37]} 27. Re6+ {[%clk 0:01:06]}  Kf7 {[%clk 0:01:37]} 28. Rxh6 {[%clk 0:01:00]}  Red8 {[%clk 0:01:35]} 29. Rh7+ {[%clk 0:00:50]}  Kf6 {[%clk 0:01:35]} 30. d5 {[%clk 0:00:47]}  cxd5 {[%clk 0:01:32]} 31. d4 {[%clk 0:00:41]}  Nc6 {[%clk 0:01:30]} 32. Raxb7 {[%clk 0:00:40]}  Rxb7 {[%clk 0:01:31]} 33. Rxb7 {[%clk 0:00:40]}  Nxd4 {[%clk 0:01:31]} 34. c6 {[%clk 0:00:36]}  Ke5 {[%clk 0:01:26]} 35. Rd7 {[%clk 0:00:31]}  Nxc6 {[%clk 0:01:25]} 36. Rg7 {[%clk 0:00:28]}  g4 {[%clk 0:01:24]} 37. Kf2 {[%clk 0:00:26]}  Rb8 {[%clk 0:01:21]} 38. Rd7 {[%clk 0:00:23]}  Rb2+ {[%clk 0:01:21]} 39. Kf1 {[%clk 0:00:23]}  Nb4 {[%clk 0:01:16]} 40. h4 {[%clk 0:00:21]}  gxh3 {[%clk 0:00:54]} 41. Bxh3 {[%clk 0:00:21]}  Nc2 {[%clk 0:00:54]} 42. Re7+ {[%clk 0:00:18]}  Kd4 {[%clk 0:00:54]} 43. Kf2 {[%clk 0:00:17]}  Kc3 {[%clk 0:00:28]} 44. Kf3 {[%clk 0:00:14]}  Nd4+ {[%clk 0:00:23]} 45. Kf4 {[%clk 0:00:13]}  Ne2+ {[%clk 0:00:24]} 46. Kxf5 {[%clk 0:00:07]}  Nxg3+ {[%clk 0:00:24]} 47. Kf4 {[%clk 0:00:07]}  Ne4 {[%clk 0:00:20]} 48. Bf5 {[%clk 0:00:06]}  Nc5 {[%clk 0:00:20]} 49. Rc7 {[%clk 0:00:04]}  Kd4 {[%clk 0:00:20]} 50. Bg6 {[%clk 0:00:03]}  Rf2+ {[%clk 0:00:20]} 51. Kg5 {[%clk 0:00:04]}  Ne6+ {[%clk 0:00:20]} 52. Kh5 {[%clk 0:00:01]}  Nxc7 {[%clk 0:00:21]} 0-1


[Site "https://www.chess.com"]

[Event "Titled Tuesday Blitz May 25 2021"]
[White "Tarigan, Gilbert Elroy"]
[Black "Senft, Sean"]
[WhiteFideId "7108133"]
[BlackFideId "2044960"]
[WhiteElo "1908"]
[BlackElo "1881"]
[Result "0-1"]
[Round "06"]
[TimeControl "180+1"]
[Date "2021.05.25"]
[WhiteClock "0:00:06"]
[BlackClock "0:00:43"]

1. e4 {[%clk 0:03:00]}  c5 {[%clk 0:03:00]} 2. Nf3 {[%clk 0:02:58]}  d6 {[%clk 0:03:00]} 3. d4 {[%clk 0:02:57]}  cxd4 {[%clk 0:03:01]} 4. Nxd4 {[%clk 0:02:58]}  Nf6 {[%clk 0:03:02]} 5. Nc3 {[%clk 0:02:57]}  a6 {[%clk 0:03:01]} 6. Bg5 {[%clk 0:02:55]}  e6 {[%clk 0:03:02]} 7. Qd2 {[%clk 0:02:54]}  Qb6 {[%clk 0:03:01]} 8. O-O-O {[%clk 0:02:52]}  Nc6 {[%clk 0:03:02]} 9. Nb3 {[%clk 0:02:48]}  Bd7 {[%clk 0:03:03]} 10. Bxf6 {[%clk 0:02:38]}  gxf6 {[%clk 0:03:02]} 11. f4 {[%clk 0:02:39]}  Be7 {[%clk 0:03:01]} 12. f5 {[%clk 0:02:37]}  O-O-O {[%clk 0:03:01]} 13. Kb1 {[%clk 0:02:36]}  Kb8 {[%clk 0:02:59]} 14. Be2 {[%clk 0:02:24]}  Rc8 {[%clk 0:02:56]} 15. Nd4 {[%clk 0:02:16]}  Nxd4 {[%clk 0:02:55]} 16. Qxd4 {[%clk 0:02:17]}  Qxd4 {[%clk 0:02:55]} 17. Rxd4 {[%clk 0:02:18]}  Bc6 {[%clk 0:02:52]} 18. Bh5 {[%clk 0:02:03]}  Rhf8 {[%clk 0:02:51]} 19. Re1 {[%clk 0:01:50]}  b5 {[%clk 0:02:49]} 20. Bg4 {[%clk 0:01:35]}  e5 {[%clk 0:02:45]} 21. Rd3 {[%clk 0:01:32]}  b4 {[%clk 0:02:43]} 22. Nd5 {[%clk 0:01:31]}  Bxd5 {[%clk 0:02:44]} 23. Rxd5 {[%clk 0:01:32]}  Rg8 {[%clk 0:02:43]} 24. Bf3 {[%clk 0:01:29]}  Rc5 {[%clk 0:02:41]} 25. Rd3 {[%clk 0:01:25]}  Rgc8 {[%clk 0:02:32]} 26. Bd1 {[%clk 0:01:22]}  Rg8 {[%clk 0:02:31]} 27. Re2 {[%clk 0:01:15]}  a5 {[%clk 0:02:29]} 28. Rh3 {[%clk 0:01:10]}  Rg7 {[%clk 0:02:27]} 29. Rf2 {[%clk 0:01:06]}  d5 {[%clk 0:02:24]} 30. Bf3 {[%clk 0:00:59]}  dxe4 {[%clk 0:02:13]} 31. Bxe4 {[%clk 0:01:00]}  Rc4 {[%clk 0:02:12]} 32. Re2 {[%clk 0:00:56]}  Rd4 {[%clk 0:02:11]} 33. Bd3 {[%clk 0:00:50]}  Kc7 {[%clk 0:02:00]} 34. g3 {[%clk 0:00:47]}  Rd8 {[%clk 0:01:57]} 35. Re4 {[%clk 0:00:46]}  Bc5 {[%clk 0:01:56]} 36. Rh6 {[%clk 0:00:43]}  Rd6 {[%clk 0:01:56]} 37. Kc1 {[%clk 0:00:38]}  Rd4 {[%clk 0:01:54]} 38. Rxd4 {[%clk 0:00:36]}  Bxd4 {[%clk 0:01:54]} 39. Kb1 {[%clk 0:00:25]}  a4 {[%clk 0:01:53]} 40. b3 {[%clk 0:00:23]}  a3 {[%clk 0:01:53]} 41. Rh4 {[%clk 0:00:20]}  Kd6 {[%clk 0:01:52]} 42. Kc1 {[%clk 0:00:19]}  Kd5 {[%clk 0:01:49]} 43. Kd1 {[%clk 0:00:20]}  Kc5 {[%clk 0:01:39]} 44. Ke2 {[%clk 0:00:20]}  Kd5 {[%clk 0:01:36]} 45. Kf3 {[%clk 0:00:19]}  Bc5 {[%clk 0:01:26]} 46. Rc4 {[%clk 0:00:14]}  Kd6 {[%clk 0:01:20]} 47. Rh4 {[%clk 0:00:10]}  Bd4 {[%clk 0:01:19]} 48. Rh6 {[%clk 0:00:07]}  Ke7 {[%clk 0:01:18]} 49. Be2 {[%clk 0:00:08]}  Kd7 {[%clk 0:01:11]} 50. Ke4 {[%clk 0:00:07]}  Ke7 {[%clk 0:01:10]} 51. g4 {[%clk 0:00:05]}  Bc3 {[%clk 0:00:59]} 52. Rh3 {[%clk 0:00:04]}  Kd6 {[%clk 0:00:57]} 53. Rd3+ {[%clk 0:00:03]}  Kc7 {[%clk 0:00:52]} 54. Rh3 {[%clk 0:00:04]}  Kc6 {[%clk 0:00:50]} 55. Kf3 {[%clk 0:00:05]}  Kd5 {[%clk 0:00:49]} 56. Bc4+ {[%clk 0:00:02]}  Kd4 {[%clk 0:00:48]} 57. Rh6 {[%clk 0:00:03]}  e4+ {[%clk 0:00:48]} 58. Ke2 {[%clk 0:00:03]}  e3 {[%clk 0:00:46]} 59. h3 {[%clk 0:00:03]}  Bd2 {[%clk 0:00:46]} 60. Rxf6 {[%clk 0:00:02]}  Kc3 {[%clk 0:00:46]} 61. Rxf7 {[%clk 0:00:02]}  Rxf7 {[%clk 0:00:44]} 62. Bxf7 {[%clk 0:00:03]}  Kb2 {[%clk 0:00:44]} 63. Bg6 {[%clk 0:00:02]}  hxg6 {[%clk 0:00:42]} 64. fxg6 {[%clk 0:00:02]}  Bc3 {[%clk 0:00:42]} 65. h4 {[%clk 0:00:03]}  Kxa2 {[%clk 0:00:42]} 66. h5 {[%clk 0:00:04]}  Kb2 {[%clk 0:00:43]} 67. h6 {[%clk 0:00:05]}  a2 {[%clk 0:00:44]} 68. g7 {[%clk 0:00:06]}  a1=Q {[%clk 0:00:43]} 69. g8=Q {[%clk 0:00:06]}  Qe1+ {[%clk 0:00:44]} 70. Kd3 {[%clk 0:00:07]}  Qd2+ {[%clk 0:00:45]} 71. Kc4 {[%clk 0:00:08]}  Qd4+ {[%clk 0:00:44]} 72. Kb5 {[%clk 0:00:08]}  e2 {[%clk 0:00:45]} 73. Qe6 {[%clk 0:00:06]}  e1=Q {[%clk 0:00:44]} 74. Qa6 {[%clk 0:00:05]}  Qe2+ {[%clk 0:00:43]} 75. Ka4 {[%clk 0:00:06]}  Qxa6# {[%clk 0:00:43]} 0-1


[Site "https://www.chess.com"]

[Event "Titled Tuesday Blitz May 25 2021"]
[White "Tejedor Fuente, Enrique"]
[Black "Nesterov, Arseniy"]
[WhiteFideId "2299100"]
[BlackFideId "24198455"]
[WhiteElo "2535"]
[BlackElo "2441"]
[Result "0-1"]
[Round "06"]
[TimeControl "180+1"]
[Date "2021.05.25"]
[WhiteClock "0:00:01"]
[BlackClock "0:01:03"]

1. e4 {[%clk 0:03:00]}  e5 {[%clk 0:03:00]} 2. Nf3 {[%clk 0:03:01]}  Nc6 {[%clk 0:03:00]} 3. Bb5 {[%clk 0:03:01]}  a6 {[%clk 0:03:01]} 4. Ba4 {[%clk 0:03:02]}  b5 {[%clk 0:03:01]} 5. Bb3 {[%clk 0:03:01]}  Na5 {[%clk 0:03:02]} 6. Nxe5 {[%clk 0:02:44]}  Nxb3 {[%clk 0:02:58]} 7. axb3 {[%clk 0:02:45]}  Qg5 {[%clk 0:02:58]} 8. Nf3 {[%clk 0:02:09]}  Qxg2 {[%clk 0:02:58]} 9. Rg1 {[%clk 0:02:09]}  Qh3 {[%clk 0:02:58]} 10. Nc3 {[%clk 0:02:09]}  Bb7 {[%clk 0:02:58]} 11. Qe2 {[%clk 0:01:52]}  O-O-O {[%clk 0:02:55]} 12. d3 {[%clk 0:01:45]}  Re8 {[%clk 0:02:50]} 13. Bf4 {[%clk 0:01:40]}  h6 {[%clk 0:02:43]} 14. Rg3 {[%clk 0:01:09]}  Qe6 {[%clk 0:02:42]} 15. Nd4 {[%clk 0:01:10]}  Qf6 {[%clk 0:02:24]} 16. Be3 {[%clk 0:00:43]}  Bd6 {[%clk 0:02:20]} 17. Rf3 {[%clk 0:00:39]}  Qg6 {[%clk 0:02:20]} 18. Nf5 {[%clk 0:00:37]}  Bxh2 {[%clk 0:02:10]} 19. Kd2 {[%clk 0:00:30]}  Ne7 {[%clk 0:02:07]} 20. Nxe7+ {[%clk 0:00:18]}  Rxe7 {[%clk 0:02:07]} 21. Rh1 {[%clk 0:00:15]}  Bd6 {[%clk 0:02:04]} 22. Rf5 {[%clk 0:00:10]}  f6 {[%clk 0:01:55]} 23. Nd5 {[%clk 0:00:09]}  Re5 {[%clk 0:01:48]} 24. Rxe5 {[%clk 0:00:08]}  fxe5 {[%clk 0:01:49]} 25. c4 {[%clk 0:00:05]}  Bxd5 {[%clk 0:01:45]} 26. exd5 {[%clk 0:00:03]}  Bb4+ {[%clk 0:01:43]} 27. Kc1 {[%clk 0:00:03]}  e4 {[%clk 0:01:43]} 28. d4 {[%clk 0:00:03]}  Kb7 {[%clk 0:01:24]} 29. cxb5 {[%clk 0:00:02]}  Ra8 {[%clk 0:01:17]} 30. Qc4 {[%clk 0:00:02]}  Qd6 {[%clk 0:01:13]} 31. Kc2 {[%clk 0:00:02]}  a5 {[%clk 0:01:09]} 32. Rg1 {[%clk 0:00:02]}  g5 {[%clk 0:01:09]} 33. Rh1 {[%clk 0:00:02]}  Rf8 {[%clk 0:01:08]} 34. Rh3 {[%clk 0:00:02]}  Rf3 {[%clk 0:01:06]} 35. Rxf3 {[%clk 0:00:01]}  exf3 {[%clk 0:01:07]} 36. Kd1 {[%clk 0:00:01]}  g4 {[%clk 0:01:06]} 37. Kc2 {[%clk 0:00:01]}  h5 {[%clk 0:01:07]} 38. Kd1 {[%clk 0:00:01]}  h4 {[%clk 0:01:07]} 39. Kc2 {[%clk 0:00:02]}  h3 {[%clk 0:01:08]} 40. Kb1 {[%clk 0:00:02]}  h2 {[%clk 0:01:08]} 41. Qf1 {[%clk 0:00:02]}  Qxd5 {[%clk 0:01:05]} 42. Ka2 {[%clk 0:00:02]}  Qh5 {[%clk 0:01:05]} 43. Qh1 {[%clk 0:00:01]}  Qh3 {[%clk 0:01:05]} 44. d5 {[%clk 0:00:02]}  Qg2 {[%clk 0:01:04]} 45. Qc1 {[%clk 0:00:01]}  h1=Q {[%clk 0:01:04]} 46. Qc4 {[%clk 0:00:01]}  Qgf1 {[%clk 0:01:03]} 47. Qe4 {[%clk 0:00:01]}  Qa1# {[%clk 0:01:03]} 0-1


[Site "https://www.chess.com"]